bitfinex-derivatives/quotes_ETHF0:USTF0_20250214
["timestamp","ask_amount","ask_price","bid_price","bid_amount"]
[1739519653238,41.53999,2702.3,2702.2,3.99852069]
[1739519655150,41.53999,2702.3,2702.2,0.56277753]
[1739519655446,41.53999,2702.3,2701.6,22.316]
[1739519655447,1.85013,2702.1,2701.6,20.68214316]
[1739519655637,0.74016,2701.7,2701.6,19.38]
[1739519655837,0.74016,2701.7,2701.6,19.94245168]
[1739519656038,1.89796,2701.7,2701.6,19.94245168]
[1739519656443,1.89796,2701.7,2701.6,19.38]
[1739519657141,42.69796,2701.7,2701.6,19.38]
[1739519657339,42.69796,2701.7,2701.6,20.12019]
[1739519657539,42.69796,2701.7,2701.6,19.38]
[1739519663340,45.90576,2701.7,2701.6,19.38]
[1739519663745,0.74024,2701.4,2701.3,0.57304682]
[1739519664052,0.74024,2701.4,2701.3,0.74581682]
[1739519664352,0.74024,2701.4,2701.3,0.00554682]
[1739519668753,0.74024,2701.4,2701.3,0.74581682]
[1739519669144,0.74024,2701.4,2701.3,0.00554682]
[1739519674166,2.04238316,2701.4,2701.3,0.00554682]
[1739519674671,42.84238316,2701.4,2701.3,0.00554682]
[1739519675470,42.84238316,2701.4,2701.3,0.74581682]
[1739519677363,41.54024,2701.4,2701.3,0.74581682]
[1739519677574,40.8,2701.4,2701.3,0.74581682]
[1739519677874,41.54024,2701.4,2701.3,1.32551682]
[1739519678375,40.8,2701.4,2701.3,1.32551682]
[1739519678671,41.54024,2701.4,2701.3,1.32551682]
[1739519679368,40.8,2701.4,2701.3,1.32551682]
[1739519681579,41.54024,2701.4,2701.3,1.32551682]
[1739519681878,40.8,2701.4,2701.3,1.32551682]
[1739519683472,40.8,2701.4,2701.3,1.88713817]
[1739519686378,40.8,2701.4,2701.3,1.32551682]
[1739519686678,40.8,2701.4,2701.3,1.887672]
[1739519688385,40.8,2701.4,2701.3,1.8876315]
[1739519690478,40.8,2701.4,2701.3,1.88763316]
[1739519691685,40.8,2701.4,2701.3,1.88763872]
[1739519692275,40.8,2701.4,2701.3,1.88763719]
[1739519692982,40.8,2701.4,2701.3,1.88763668]
[1739519695387,40.8,2701.4,2701.3,1.30793668]
[1739519695685,40.8,2701.4,2701.3,1.90583668]
[1739519696388,40.8,2701.4,2701.3,1.90578181]
[1739519699685,3.94789,2702.0,2701.4,1.85056]
[1739519699886,3.94789,2702.0,2701.8,0.74013]
[1739519700283,3.94789,2702.0,2701.8,1.32693]
[1739519700482,3.94789,2702.0,2701.8,0.5868]
[1739519700682,40.8,2701.9,2701.8,1.32691]
[1739519702690,40.8,2701.9,2701.8,0.5868]
[1739519702691,41.5401,2701.9,2701.8,0.5868]
[1739519702879,41.5401,2701.9,2701.7,0.74014]
[1739519703083,0.55,2701.8,2701.7,0.74014]
[1739519703791,41.35,2701.8,2701.7,0.74014]
[1739519704484,41.35,2701.8,2701.7,1.3020778]
[1739519705190,41.35,2701.8,2701.7,2.60422096]
[1739519705690,41.35,2701.8,2701.7,2.60431274]
[1739519706285,42.09013,2701.8,2701.6,0.5606]
[1739519706478,42.62893,2701.8,2701.7,0.74016]
[1739519706684,41.8888,2701.8,2701.7,0.74016]
[1739519706885,41.8888,2701.8,2701.7,1.30229225]
[1739519707591,41.8888,2701.8,2701.7,1.30238062]
[1739519708290,42.62893,2701.8,2701.7,1.30238062]
[1739519708484,41.8888,2701.8,2701.7,1.30238062]
[1739519709791,41.8888,2701.8,2701.7,2.60452378]
[1739519710684,41.35,2701.8,2701.7,2.60452378]
[1739519710894,40.8,2701.8,2701.7,2.60452378]
[1739519713090,40.8,2701.8,2701.7,1.30238062]
[1739519713591,41.3745,2701.8,2701.7,1.30238062]
[1739519714193,41.3745,2701.8,2701.7,1.30261889]
[1739519714592,41.3745,2701.8,2701.7,2.60476205]
[1739519714797,40.8,2701.8,2701.7,2.60476205]
[1739519717299,40.8,2701.8,2701.7,2.60477541]
[1739519719206,40.8,2701.8,2701.7,2.60474246]
[1739519719402,41.54013,2701.8,2701.7,0.5624393]
[1739519719593,40.8,2701.8,2701.7,0.5624393]
[1739519719797,40.8,2701.8,2701.7,1.3025993]
[1739519720197,41.3744,2701.8,2701.7,1.3025993]
[1739519720398,41.3744,2701.8,2701.7,1.30261044]
[1739519723303,41.3744,2701.8,2701.7,1.30269758]
[1739519723698,40.8,2701.8,2701.7,1.30269758]
[1739519729008,40.8,2701.8,2701.7,1.30287851]
[1739519731101,40.8,2701.8,2701.7,1.30290005]
[1739519731503,40.8,2701.8,2701.7,2.60504321]
[1739519734212,40.8,2701.8,2701.7,2.6050021]
[1739519734913,40.8,2701.8,2701.7,2.60497539]
[1739519738907,40.8,2701.8,2701.7,2.60495398]
[1739519740915,40.8,2701.8,2701.7,2.60487514]
[1739519742711,40.8,2701.8,2701.7,1.30120216]
[1739519744718,40.8,2701.8,2701.7,1.30115354]
[1739519746615,40.8,2701.8,2701.7,0.74016]
[1739519746818,40.8,2701.8,2701.7,1.30109781]
[1739519750522,40.8,2701.8,2701.7,0.74016]
[1739519750725,40.8,2701.8,2701.7,1.30103085]
[1739519752627,40.8,2701.8,2701.7,1.30102737]
[1739519753021,40.8,2701.8,2701.7,4.50882737]
[1739519754525,40.8,2701.8,2701.7,4.50886428]
[1739519763336,1.1176,2702.0,2701.7,3.76870428]
[1739519763533,1.1176,2702.0,2701.8,3.43104744]
[1739519763733,1.1176,2702.0,2701.9,1.30100428]
[1739519764031,2.41974316,2702.0,2701.9,0.56090428]
[1739519764230,43.21974316,2702.0,2701.4,22.5908]
[1739519764437,2.04229316,2701.8,2701.5,0.56124902]
[1739519764636,0.59,2701.7,2701.5,2.04235316]
[1739519764941,0.5768,2701.6,2701.5,2.04235316]
[1739519765142,0.5768,2701.6,2701.5,1.86314758]
[1739519765538,41.3768,2701.6,2701.5,2.60335758]
[1739519766541,40.8,2701.6,2701.5,2.60335758]
[1739519766739,1.1429,2701.7,2701.5,1.86314758]
[1739519767040,1.1429,2701.7,2701.6,1.86209442]
[1739519767434,1.1429,2701.7,2701.6,1.30109]
[1739519767643,1.1429,2701.7,2701.6,1.86172478]
[1739519767847,41.9429,2701.7,2701.6,1.86172478]
[1739519769149,41.9429,2701.7,2701.6,1.12153478]
[1739519769441,41.9429,2701.7,2701.6,0.56058346]
[1739519770844,41.9429,2701.7,2701.5,2.59924316]
[1739519771337,41.9429,2701.7,2701.6,0.5605364]
[1739519771540,41.9429,2701.7,2701.6,0.74019]
[1739519771741,41.9429,2701.7,2701.5,1.30214316]
[1739519772043,41.9429,2701.7,2701.6,0.74019]
[1739519774644,41.9429,2701.7,2701.5,2.04233316]
[1739519774841,41.9429,2701.7,2701.5,1.30214316]
[1739519775047,41.9429,2701.7,2701.6,0.74019]
[1739519778950,41.9429,2701.7,2701.5,5.63304316]
[1739519779145,41.9429,2701.7,2701.5,6.37323316]
[1739519779346,41.9429,2701.7,2701.5,5.63304316]
[1739519779557,41.9429,2701.7,2701.6,0.74019]
[1739519780650,41.9429,2701.7,2701.5,5.63304316]
[1739519780856,41.9429,2701.7,2701.6,0.74019]
[1739519781553,41.9429,2701.7,2701.5,5.63304316]
[1739519781746,41.9429,2701.7,2701.5,6.37323316]
[1739519782148,42.68306,2701.7,2701.5,6.37323316]
[1739519782347,40.8,2701.7,2701.6,0.74019]
[1739519782554,40.8,2701.7,2701.6,1.87144578]
[1739519783353,40.8,2701.7,2701.6,1.87146178]
[1739519784158,40.8,2701.7,2701.6,1.13127178]
[1739519784653,40.8,2701.7,2701.6,1.87146178]
[1739519785452,40.8,2701.7,2701.6,1.87153084]
[1739519785656,40.8,2701.7,2701.6,1.13134084]
[1739519785857,40.8,2701.7,2701.6,1.87153084]
[1739519787349,40.8,2701.7,2701.6,1.87023995]
[1739519792761,40.8,2701.7,2701.6,1.13004995]
[1739519793256,40.8,2701.7,2701.6,1.13038986]
[1739519793462,40.8,2701.7,2701.6,1.87057986]
[1739519793963,40.8,2701.7,2701.6,1.13038986]
[1739519796664,41.54016,2701.7,2701.6,1.13038986]
[1739519796862,41.54016,2701.7,2701.6,0.55948986]
[1739519797058,40.8,2701.7,2701.6,0.55948986]
[1739519798155,41.54016,2701.7,2701.6,0.55948986]
[1739519798563,40.8,2701.7,2701.6,0.55948986]
[1739519798965,40.8,2701.7,2701.6,0.55964988]
[1739519799366,40.8,2701.7,2701.6,1.29983988]
[1739519800753,40.8,2701.7,2701.6,0.55964988]
[1739519800958,40.8,2701.7,2701.6,0.55965107]
[1739519801159,40.8,2701.7,2701.6,1.29984107]
[1739519803669,41.54016,2701.7,2701.6,0.55965107]
[1739519804664,40.8,2701.7,2701.6,0.55965107]
[1739519804863,40.8,2701.7,2701.6,1.29989205]
[1739519805362,41.54016,2701.7,2701.6,0.55970205]
[1739519805671,42.11396,2701.7,2701.6,0.55970205]
[1739519806869,0.74021,2701.5,2701.4,2.30723]
[1739519807071,0.74021,2701.5,2701.4,2.1267309]
[1739519807568,0.74021,2701.5,2701.4,0.5597309]
[1739519807766,0.74024,2701.4,2701.3,0.00554682]
[1739519808065,2.59488316,2701.4,2701.3,0.00554682]
[1739519809068,43.39488316,2701.4,2701.3,0.00554682]
[1739519809766,43.39488316,2701.4,2701.3,0.74581682]
[1739519810267,42.09274,2701.4,2701.3,0.74581682]
[1739519810971,42.09274,2701.4,2701.3,0.00554682]
[1739519813767,42.09274,2701.4,2701.3,0.74581682]
[1739519814171,42.09274,2701.4,2701.3,0.00554682]
[1739519816078,43.39488316,2701.4,2701.3,0.00554682]
[1739519821782,43.39488316,2701.4,2701.3,0.74581682]
[1739519821983,43.39488316,2701.4,2701.3,0.00554682]
[1739519822885,42.09274,2701.4,2701.3,0.74581682]
[1739519823575,41.3525,2701.4,2701.3,2.04795998]
[1739519823782,40.8,2701.4,2701.3,5.84565998]
[1739519823979,41.54024,2701.4,2701.3,2.47128998]
[1739519824173,41.54024,2701.4,2701.3,0.00554682]
[1739519824884,42.12114,2701.4,2701.3,0.00554682]
[1739519827479,41.54024,2701.4,2701.3,2.04795998]
[1739519828484,41.54024,2701.4,2701.3,1.30768998]
[1739519831592,41.54024,2701.4,2701.3,2.04795998]
[1739519832187,41.54024,2701.4,2701.3,1.30768998]
[1739519833593,41.54024,2701.4,2701.3,2.04795998]
[1739519833785,41.54024,2701.4,2701.3,1.30768998]
[1739519835586,41.54024,2701.4,2701.3,1.86711908]
[1739519835784,41.54024,2701.4,2701.3,0.00554682]
[1739519841882,41.54024,2701.4,2701.3,0.74581682]
[1739519842095,41.54024,2701.4,2701.3,0.00554682]
[1739519842595,41.54024,2701.4,2701.3,0.74581682]
[1739519842796,41.54024,2701.4,2701.3,0.00554682]
[1739519843196,41.54024,2701.4,2701.3,2.04795998]
[1739519844400,41.54024,2701.4,2701.3,2.60763458]
[1739519844598,41.54024,2701.4,2701.3,2.60763464]
[1739519845393,41.54024,2701.4,2701.3,2.60763319]
[1739519846195,41.54024,2701.4,2701.3,1.86736319]
[1739519846399,41.54024,2701.4,2701.3,2.60763319]
[1739519847497,41.54024,2701.4,2701.3,2.60763034]
[1739519847691,41.54024,2701.4,2701.3,2.60762693]
[1739519847891,40.8,2701.4,2701.3,2.60762693]
[1739519848089,41.54024,2701.4,2701.3,2.60762693]
[1739519848491,40.8,2701.4,2701.3,2.60762693]
[1739519849292,41.54024,2701.4,2701.3,2.6076593]
[1739519849496,40.8,2701.4,2701.3,2.6076593]
[1739519853201,40.8,2701.4,2701.3,2.60769224]
[1739519855198,40.8,2701.4,2701.3,1.86735092]
[1739519855404,41.54024,2701.4,2701.3,1.86735273]
[1739519855603,41.54024,2701.4,2701.3,1.86738108]
[1739519855803,41.54024,2701.4,2701.3,0.56523792]
[1739519856003,42.07934,2701.4,2701.3,0.00554682]
[1739519857802,42.61844,2701.4,2701.3,0.00554682]
[1739519862202,42.61844,2701.4,2701.3,0.74581682]
[1739519865808,42.07934,2701.4,2701.3,0.74581682]
[1739519866411,42.07934,2701.4,2701.3,1.32901682]
[1739519866818,42.07934,2701.4,2701.3,0.58874682]
[1739519867009,42.07934,2701.4,2701.3,1.32901682]
[1739519872216,41.54024,2701.4,2701.3,1.88864361]
[1739519872405,40.8,2701.4,2701.3,3.19078677]
[1739519873010,40.8,2701.4,2701.3,3.19076957]
[1739519874212,41.54024,2701.4,2701.3,3.19076957]
[1739519874820,40.8,2701.4,2701.3,2.63115998]
[1739519875015,40.8,2701.4,2701.3,3.19076497]
[1739519876920,40.8,2701.4,2701.3,3.1907086]
[1739519877319,40.8,2701.4,2701.3,4.7577086]
[1739519879321,40.8,2701.4,2701.3,4.0174386]
[1739519879822,40.8,2701.4,2701.3,4.7577086]
[1739519880726,40.8,2701.4,2701.3,4.7576182]
[1739519881229,40.8,2701.4,2701.3,4.75761865]
[1739519882127,40.8,2701.4,2701.3,4.19815998]
[1739519882428,40.8,2701.4,2701.3,4.75760752]
[1739519884226,40.8,2701.4,2701.3,4.75760232]
[1739519886126,40.8,2701.4,2701.3,4.75757924]
[1739519887832,41.54024,2701.4,2701.3,4.01730924]
[1739519888027,41.54024,2701.4,2701.3,0.00554682]
[1739519888922,42.08294,2701.4,2701.3,0.00554682]
[1739519890538,42.08294,2701.4,2701.3,0.74581682]
[1739519894132,42.08294,2701.4,2701.3,1.3053359]
[1739519894834,42.08294,2701.4,2701.3,0.74581682]
[1739519895131,42.08294,2701.4,2701.3,0.00554682]
[1739519896435,42.08294,2701.4,2701.3,1.30539046]
[1739519896932,42.08294,2701.4,2701.3,1.30538679]
[1739519897132,42.08294,2701.4,2701.3,0.74581682]
[1739519897531,42.08294,2701.4,2701.3,0.00554682]
[1739519898331,42.08294,2701.4,2701.3,1.30540013]
[1739519898733,40.8,2701.4,2701.3,2.60754329]
[1739519900937,40.8,2701.4,2701.3,2.6075172]
[1739519901639,41.54024,2701.4,2701.3,1.8672472]
[1739519901938,41.54024,2701.4,2701.3,1.86725293]
[1739519902132,41.54024,2701.4,2701.3,3.02555293]
[1739519902329,40.8,2701.4,2701.3,3.76582293]
[1739519905740,40.8,2701.4,2701.3,3.76579771]
[1739519907638,40.8,2701.4,2701.3,3.76579113]
[1739519911841,41.54024,2701.4,2701.3,3.76579113]
[1739519912145,40.8,2701.4,2701.3,3.76579113]
[1739519913244,41.54024,2701.4,2701.3,3.02552113]
[1739519913445,42.11734,2701.4,2701.3,2.45422113]
[1739519913945,42.11734,2701.4,2701.3,2.45423982]
[1739519914749,42.11734,2701.4,2701.3,1.86723982]
[1739519915353,42.11734,2701.4,2701.3,0.56509666]
[1739519915543,42.11734,2701.4,2701.3,0.00554682]
[1739519920343,43.41948316,2701.4,2701.3,0.00554682]
[1739519924353,42.11734,2701.4,2701.3,0.74581682]
[1739519924553,41.54024,2701.4,2701.3,0.74581682]
[1739519924750,41.54024,2701.4,2701.3,0.00554682]
[1739519926953,41.54024,2701.4,2701.3,0.55364682]
[1739519927654,41.54024,2701.4,2701.3,1.29391682]
[1739519927955,41.54024,2701.4,2701.3,2.59605998]
[1739519928255,41.54024,2701.4,2701.3,1.85578998]
[1739519928647,41.54024,2701.4,2701.3,3.14785998]
[1739519929056,41.54024,2701.4,2701.3,2.40758998]
[1739519930245,41.54024,2701.4,2701.3,1.10544682]
[1739519931152,41.54024,2701.4,2701.3,1.84571682]
[1739519931659,41.54024,2701.4,2701.3,3.14785998]
[1739519932253,41.54024,2701.4,2701.3,2.40758998]
[1739519932655,41.54024,2701.4,2701.3,1.10544682]
[1739519937459,41.54024,2701.4,2701.3,1.84571682]
[1739519938359,41.54024,2701.4,2701.3,1.10544682]
[1739519938659,41.54024,2701.4,2701.3,1.84571682]
[1739519938959,41.54024,2701.4,2701.3,1.10544682]
[1739519939154,41.54024,2701.4,2701.3,1.84571682]
[1739519941359,41.54024,2701.4,2701.3,1.10544682]
[1739519945855,41.54024,2701.4,2701.3,1.84571682]
[1739519948863,41.54024,2701.4,2701.3,1.10544682]
[1739519949063,41.54024,2701.4,2701.3,1.84571682]
[1739519950161,40.8,2701.4,2701.3,1.84571682]
[1739519950364,41.54024,2701.4,2701.3,2.40547708]
[1739519950557,41.54024,2701.4,2701.3,2.40546586]
[1739519951366,40.8,2701.4,2701.3,6.91540902]
[1739519952056,40.8,2701.4,2701.3,6.9154057]
[1739519952256,40.8,2701.4,2701.3,6.91544912]
[1739519955965,40.8,2701.4,2701.3,6.91507034]
[1739519956665,40.8,2701.4,2701.3,6.17480034]
[1739519956865,41.54024,2701.4,2701.3,6.17480034]
[1739519957269,41.54024,2701.4,2701.3,6.91507034]
[1739519957664,40.8,2701.4,2701.3,6.91507034]
[1739519957965,41.54024,2701.4,2701.3,6.91507034]
[1739519958168,41.54024,2701.4,2701.3,8.48107034]
[1739519959969,41.54024,2701.4,2701.3,8.48099394]
[1739519961266,40.8,2701.4,2701.3,8.48099394]
[1739519961470,41.54024,2701.4,2701.3,7.74072394]
[1739519961971,41.54024,2701.4,2701.3,7.74070326]
[1739519962361,41.54024,2701.4,2701.3,1.6647601]
[1739519962561,41.54024,2701.4,2701.3,0.5648601]
[1739519962769,41.54024,2701.4,2701.3,0.00554682]
[1739519962770,42.84238316,2701.4,2701.3,0.00554682]
[1739519963167,43.98958316,2701.4,2701.3,0.00554682]
[1739519964471,42.68744,2701.4,2701.3,0.00554682]
[1739519964672,41.54024,2701.4,2701.3,0.74581682]
[1739519965773,41.54024,2701.4,2701.3,0.00554682]
[1739519971275,42.84238316,2701.4,2701.3,0.00554682]
[1739519984279,42.10214316,2701.4,2700.9,0.5834]
[1739519984470,2.04249316,2701.0,2700.9,0.5834]
[1739519985077,42.84249316,2701.0,2700.9,0.5834]
[1739519985382,43.41439316,2701.0,2700.9,0.5834]
[1739519987574,0.7404,2700.8,2700.7,0.00554682]
[1739519987881,5.25034316,2700.8,2700.7,0.00554682]
[1739519988278,46.05034316,2700.8,2700.7,0.00554682]
[1739520000184,44.7482,2700.8,2700.7,0.00554682]
[1739520003684,40.8,2700.8,2700.7,0.00554682]
[1739520003891,40.8,2700.8,2700.7,0.58624682]
[1739520004089,41.54041,2700.8,2700.7,0.58624682]
[1739520004591,44.74821,2700.8,2700.7,0.58624682]
[1739520005089,40.8,2700.8,2700.7,1.32667682]
[1739520005989,40.8,2700.8,2700.7,1.88660383]
[1739520006897,41.5404,2700.8,2700.7,0.58624682]
[1739520007090,40.8,2700.8,2700.7,1.32667682]
[1739520007497,40.8,2700.8,2700.7,1.88673955]
[1739520007697,40.8,2700.8,2700.7,0.58624682]
[1739520007995,40.8,2700.8,2700.7,1.32667682]
[1739520008197,40.8,2700.8,2700.7,0.58624682]
[1739520009201,40.8,2700.8,2700.7,1.32667682]
[1739520009600,40.8,2700.8,2700.7,7.32667682]
[1739520010203,0.00554682,2701.0,2700.9,0.74038]
[1739520010401,3.2078,2701.5,2700.9,3.2078]
[1739520010603,3.2078,2701.9,2701.0,1.566]
[1739520010803,3.2078,2701.9,2701.2,3.2078]
[1739520011007,3.2078,2701.9,2701.5,3.2078]
[1739520011210,3.2078,2701.9,2701.5,3.94801]
[1739520011211,40.8,2701.6,2701.5,3.94801]
[1739520013507,40.8,2701.6,2701.5,3.2078]
[1739520013697,40.8,2701.6,2701.5,5.05731]
[1739520014109,40.8,2701.6,2701.5,1.84951]
[1739520017009,40.8,2701.6,2701.5,2.41501]
[1739520018714,40.8,2701.6,2701.5,1.6748]
[1739520018908,40.8,2701.6,2701.5,2.41501]
[1739520022511,0.00554682,2701.8,2701.5,11.17106505]
[1739520022726,0.00554682,2701.8,2701.7,0.74016]
[1739520023618,40.80554682,2701.8,2701.7,0.74016]
[1739520024118,40.80554682,2701.8,2701.7,2.30616]
[1739520025316,40.80554682,2701.8,2701.7,0.74016]
[1739520025512,40.80554682,2701.8,2701.7,2.30616]
[1739520027621,40.80554682,2701.8,2701.5,4.8826]
[1739520027823,0.74017,2701.7,2701.6,0.74018]
[1739520028120,0.74019,2701.6,2701.5,2.41499]
[1739520028529,0.74019,2701.6,2701.5,0.5558]
[1739520028725,44.74799,2701.6,2701.5,0.5558]
[1739520029030,0.74024,2701.4,2701.3,0.5451]
[1739520029728,41.54024,2701.4,2701.3,0.5451]
[1739520029921,40.8,2701.4,2701.3,0.5451]
[1739520030120,40.8,2701.4,2701.3,1.28537]
[1739520033931,41.54024,2701.4,2701.2,0.574]
[1739520034124,42.09994,2701.4,2701.2,0.574]
[1739520034723,0.5597,2701.4,2701.2,0.574]
[1739520034923,1.29995,2701.4,2701.3,0.74027]
[1739520035323,1.29995,2701.4,2701.2,1.31428]
[1739520035324,41.3597,2701.4,2701.2,1.31428]
[1739520035628,42.09995,2701.4,2701.2,1.31428]
[1739520035828,41.3597,2701.4,2701.2,0.574]
[1739520036126,42.09994,2701.4,2701.3,0.74027]
[1739520036331,41.3597,2701.4,2701.2,0.574]
[1739520036632,0.74027,2701.3,2701.2,0.74028]
[1739520037331,41.54027,2701.3,2701.2,0.74028]
[1739520038325,40.8,2701.3,2701.0,2.1424]
[1739520038531,40.8,2701.3,2700.9,3.2078]
[1739520038532,43.21799,2701.3,2700.9,3.2078]
[1739520038733,0.74034,2701.1,2701.0,0.74034]
[1739520039428,41.54034,2701.1,2701.0,0.74034]
[1739520039629,40.8,2701.1,2701.0,0.74034]
[1739520040130,40.8,2701.1,2701.0,1.33174]
[1739520040728,40.8,2701.1,2701.0,1.892292]
[1739520041127,40.8,2701.1,2701.0,1.33174]
[1739520043934,40.8,2701.1,2701.0,1.89219767]
[1739520044430,40.8,2701.1,2701.0,1.89219169]
[1739520045829,40.8,2701.1,2701.0,1.89218575]
[1739520047533,0.00554682,2701.8,2701.6,0.74018]
[1739520047734,0.5487,2701.7,2701.6,0.74018]
[1739520048533,40.8,2701.7,2701.6,0.74018]
[1739520048928,40.8,2701.7,2701.6,3.94798]
[1739520049338,40.8,2701.7,2701.6,4.50826843]
[1739520049832,40.8,2701.7,2701.6,4.50826704]
[1739520051235,40.8,2701.7,2701.6,3.94798]
[1739520051934,40.8,2701.7,2701.6,4.5081154]
[1739520052335,0.00554682,2701.8,2701.6,3.7679354]
[1739520052531,0.00554682,2701.8,2701.7,1.8837954]
[1739520053233,0.00554682,2701.8,2701.7,1.3002954]
[1739520053535,40.80554682,2701.8,2701.7,2.30716]
[1739520054436,41.54567682,2701.8,2701.7,1.567]
[1739520054640,40.80554682,2701.8,2701.7,2.30716]
[1739520054841,40.80554682,2701.8,2701.7,0.74016]
[1739520055730,40.80554682,2701.8,2701.6,4.7748]
[1739520055933,40.80554682,2701.8,2701.7,0.74016]
[1739520056335,40.80554682,2701.8,2701.6,3.2078]
[1739520056539,41.40164682,2701.8,2701.7,0.74016]
[1739520056934,42.14177682,2701.8,2701.6,0.74016]
[1739520057736,40.80554682,2701.8,2701.7,0.74016]
[1739520059741,40.80554682,2701.8,2701.6,3.2078]
[1739520059928,0.00554682,2701.8,2701.7,0.74016]
[1739520060133,1.14184682,2701.8,2701.7,0.74016]
[1739520060332,41.94184682,2701.8,2701.7,0.74016]
[1739520060532,40.80554682,2701.8,2701.7,0.74016]
[1739520060733,40.80554682,2701.8,2701.7,2.30916]
[1739520065344,40.80554682,2701.8,2701.7,2.86882001]
[1739520065841,40.80554682,2701.8,2701.7,2.30916]
[1739520067139,40.80554682,2701.8,2701.7,0.74016]
[1739520067445,40.80554682,2701.8,2701.7,2.31616]
[1739520068744,40.80554682,2701.8,2701.7,1.576]
[1739520068942,40.80554682,2701.8,2701.6,3.2078]
[1739520069242,0.74019,2701.6,2701.4,2.31721]
[1739520069444,1.28081,2701.5,2701.4,2.31721]
[1739520069632,42.67731,2701.5,2701.4,2.31721]
[1739520069831,41.9371,2701.5,2701.4,2.31721]
[1739520070442,40.8,2701.5,2701.4,2.31721]
[1739520071141,40.8,2701.5,2701.4,2.8771518]
[1739520072343,40.8,2701.5,2701.4,2.87733059]
[1739520074242,40.8,2701.5,2701.4,2.31721]
[1739520074444,40.8,2701.5,2701.4,2.87765165]
[1739520075247,40.8,2701.5,2701.4,2.87665165]
[1739520080151,40.8,2701.5,2701.4,2.87722431]
[1739520081552,40.8,2701.5,2701.4,2.87721418]
[1739520082154,40.8,2701.5,2701.4,2.87721048]
[1739520082746,0.00554682,2701.8,2701.7,0.74016]
[1739520082947,0.00554682,2701.8,2701.7,4.50896048]
[1739520083850,40.80554682,2701.8,2701.7,4.50896048]
[1739520084552,1.6831,2702.4,2702.3,0.73999]
[1739520085550,42.4831,2702.4,2702.3,0.73999]
[1739520086154,40.8,2702.4,2702.3,0.73999]
[1739520097660,41.53997,2702.4,2702.3,0.73999]
[1739520101758,40.8,2702.4,2702.3,0.73999]
[1739520112374,40.8,2702.4,2702.3,2.04164151]
[1739520113575,41.396,2702.4,2702.3,0.73999]
[1739520114783,40.8,2702.4,2702.3,0.73999]
[1739520116670,41.53997,2702.4,2702.3,0.73999]
[1739520117070,40.8,2702.4,2702.3,0.73999]
[1739520117679,40.8,2702.4,2702.3,1.84429]
[1739520132192,40.8,2702.4,2702.3,0.5434]
[1739520132493,41.53998,2702.4,2702.3,0.73999]
[1739520132989,40.8,2702.4,2702.3,0.73999]
[1739520133185,41.53997,2702.4,2702.3,0.73999]
[1739520133687,40.8,2702.4,2702.3,2.04175496]
[1739520137196,41.53997,2702.4,2702.3,2.04175496]
[1739520137895,42.11447,2702.4,2702.3,2.04175496]
[1739520138096,42.11447,2702.4,2702.3,1.30176496]
[1739520138404,41.3745,2702.4,2702.1,1.30731178]
[1739520138692,3.94782,2702.2,2702.1,0.00554682]
[1739520139196,45.28792,2702.2,2702.1,0.00554682]
[1739520139396,45.28792,2702.2,2702.1,0.74559682]
[1739520139595,45.28792,2702.2,2702.1,2.04736178]
[1739520139795,44.0078,2702.2,2702.1,2.04736178]
[1739520140496,44.74782,2702.2,2702.1,2.04736178]
[1739520141890,44.74782,2702.2,2702.1,1.30731178]
[1739520142195,50.74782,2702.2,2702.1,0.00554682]
[1739520143999,44.74782,2702.2,2702.1,0.00554682]
[1739520144197,44.74782,2702.2,2702.1,2.04736178]
[1739520144493,46.31382,2702.2,2702.1,2.04736178]
[1739520144699,46.60982,2702.2,2702.1,1.30731178]
[1739520145094,46.60982,2702.2,2702.1,2.04736178]
[1739520145496,46.60982,2702.2,2702.1,1.30731178]
[1739520145698,46.60982,2702.2,2702.1,2.04736178]
[1739520146600,46.60982,2702.2,2702.1,1.30731178]
[1739520146801,46.60982,2702.2,2702.1,0.00554682]
[1739520156505,51.8698,2702.2,2701.5,1.85054]
[1739520156812,3.94799,2701.7,2701.6,0.74019]
[1739520157108,44.74799,2701.7,2701.6,0.74019]
[1739520158213,44.0078,2701.7,2701.6,0.74019]
[1739520158404,44.74796,2701.7,2701.6,1.90179]
[1739520158604,44.0078,2701.7,2701.6,1.90179]
[1739520162215,40.8,2701.7,2701.6,1.90179]
[1739520169819,41.0961,2701.7,2701.6,4.50606438]
[1739520185923,41.0961,2701.7,2701.6,2.04232719]
[1739520186222,41.0961,2701.7,2701.6,3.34446438]
[1739520188725,41.0961,2701.7,2701.6,3.9041385]
[1739520188934,41.0961,2701.7,2701.6,3.34446438]
[1739520189735,41.0961,2701.7,2701.6,3.90414636]
[1739520190329,41.0961,2701.7,2701.6,3.90415515]
[1739520190536,1.1321,2702.3,2702.2,0.74002]
[1739520190833,1.1321,2702.3,2702.2,2.04215719]
[1739520191431,41.9321,2702.3,2702.2,2.04215719]
[1739520191935,42.0476,2702.3,2702.2,2.04215719]
[1739520192123,40.9155,2702.3,2702.2,3.34429438]
[1739520192328,40.9155,2702.3,2702.2,4.51049438]
[1739520198929,40.9155,2702.3,2702.2,3.20835719]
[1739520202632,40.9155,2702.3,2702.2,2.04215719]
[1739520205145,40.9155,2702.3,2702.2,3.21185719]
[1739520212444,0.1155,2702.3,2702.2,4.51399438]
[1739520212651,0.10440636,2702.3,2702.2,4.51399438]
[1739520213150,6.36e-06,2702.3,2702.2,4.51399438]
[1739520213342,6.36e-06,2702.3,2702.2,5.07247384]
[1739520213650,40.80000636,2702.3,2702.2,5.07247384]
[1739520214050,40.80000636,2702.3,2702.2,4.51399438]
[1739520214246,40.80000636,2702.3,2702.2,5.07249419]
[1739520216045,40.80000636,2702.3,2702.2,5.07255983]
[1739520218346,40.80000636,2702.3,2702.2,8.00855983]
[1739520222051,40.8,2702.3,2702.2,8.00855983]
[1739520223548,40.8,2702.3,2702.2,2.60072264]